Cogmind - Beta 14 @@@ ROGUE MODE // 2024.08.11 @ 13:08:14 Player: Sionnis Result: Destroyed by ET-TVI(R) with Subdweller Beam Cannon Performance ------------- Evolutions (0) 0 Regions Visited (2) 400 Robots Destroyed (11) 55 Value Destroyed (368) 368 Prototype IDs (0) 0 Alien Tech Used (0) 0 Bonus (0) 0 TOTAL SCORE: 823 Bonus ------- None Cogmind --------- Core Integrity 0/250 Matter 268/300 Energy 248/250 System Corruption 0% Temperature Cool (16) Movement Core (450) Ox8 Location -10/Subcaves Parts ------- > --- POWER (1) -------- Ion Engine > --- PROPULSION (2) --- (None) > --- UTILITY (2) ------ Medium Storage Unit Propulsion Shielding > --- WEAPON (2) ------- Subdweller Beam Cannon Battle Rifle > --- INVENTORY (10) --- Ion Engine Ion Engine Subdweller Power Source Subdweller Power Source Compact Wheel Sensor Array Signal Interpreter Medium Laser Medium Laser Peak State ------------ > --- POWER ------------ Ion Engine > --- PROPULSION ------- Light Treads > --- UTILITY ---------- Medium Storage Unit Propulsion Shielding > --- WEAPON ----------- Subdweller Beam Cannon Battle Rifle > --- INVENTORY -------- Ion Engine Ion Engine Subdweller Power Source Subdweller Power Source Compact Wheel Sensor Array Signal Interpreter Medium Laser Medium Laser [Rating: 9] Favorites ----------- Power Ion Engine Engine Ion Engine Propulsion Light Treads Treads Light Treads Utility Propulsion Shielding Storage Medium Storage Unit Protection Propulsion Shielding Weapon Medium Laser Energy Gun Medium Laser Energy Cannon Subdweller Beam Cannon Ballistic Gun Light Assault Rifle Build | -11 -10 -10 ------- Run | Yrd Mat Sub Slots Evolved . | . . . Power . | . . . Propulsion . | . . . Utility . | . . . Weapon . | . . . Parts Attached 14 | 6 4 4 Power 2 | 1 1 . Engine 2 | 1 1 . Core . | . . . Reactor . | . . . Propulsion 2 | 2 . . Treads 2 | 2 . . Leg . | . . . Wheel . | . . . Hover . | . . . Flight . | . . . Utility 5 | 1 3 1 Device . | . . . Storage 2 | 1 1 . Processor . | . . . Hackware . | . . . Protection 3 | . 2 1 Artifact . | . . . Weapon 5 | 2 . 3 Energy Gun 2 | 1 . 1 Energy Cannon 1 | . . 1 Ballistic Gun 2 | 1 . 1 Ballistic Cannon . | . . . Launcher . | . . . Special Weapon . | . . . Impact Weapon . | . . . Slashing Weapon . | . . . Piercing Weapon . | . . . Special Melee Weapon . | . . . Unidentified Prototypes . | . . . Parts Lost 4 | . . 4 Power . | . . . Propulsion 2 | . . 2 Utility 1 | . . 1 Weapon 1 | . . 1 Highest Loss Streak 2 | . . 2 To Critical Strikes . | . . . Average Slot Usage (%) 95 | . 99 89 Engine 14 | . 14 14 Treads 24 | . 28 18 Storage 14 | . 14 14 Protection 13 | . 13 13 Energy Gun 15 | . 14 16 Energy Cannon 1 | . . 3 Ballistic Gun 11 | . 14 7 Peak Build Rating 9 | 6 7 9 Average Rating 7 | 4 6 7 On Entrance 4 | . 6 7 Naked Turns . | . . . Heaviest Build 26 | 13 19 26 Greatest Support 40 | 40 40 40 Greatest Overweight (x) 1 | 1 . 1 Average Overweight (x) . | . . . Largest Inventory Capacity 10 | 8 10 10 Average Capacity 9 | 6 9 10 Most Carried 9 | 3 7 9 Average Carried 6 | 1 5 7 Final Capacity 10 | 8 10 10 Final Carried 9 | 3 7 9 Class Distribution -------------------- 100% | Mutant Dominant Class ---------------- Mutant | -10/Materials Mutant | -10/Subcaves Resources | -11 -10 -10 ----------- Run | Yrd Mat Sub Matter Collected 374 | 253 66 55 Remotely . | . . . Salvage Created 453 | . 332 121 Parts 15 | . 12 3 Haulers Intercepted 1 | . 1 . Recyclers Shooed . | . . . Parts Field Recycled . | . . . Retrieved Matter . | . . . Parts Self-Destructed . | . . . Prevented . | . . . Kills | -11 -10 -10 ------- Run | Yrd Mat Sub Combat Hostiles Destroyed 9 | . 6 3 Guns 9 | . 6 3 Classes Destroyed 4 | . 3 1 Hauler 1 | . 1 . Watcher 1 | . 1 . Grunt 6 | . 6 . Subdweller 3 | . . 3 Best Kill Streak 3 | . 3 1 Combat Bots Only 2 | . 2 1 Max Kills in Single Turn 1 | . 1 1 Gunslinging . | . . . Exploded . | . . . Melee . | . . . Uniques/NPCs Destroyed . | . . . Combat | -11 -10 -10 -------- Run | Yrd Mat Sub Hostile Shots Fired 63 | . 38 25 Missed 19 | . 11 8 Damage Taken 886 | . 339 547 Core 258 | . 78 180 Absorbed by Shields . | . . . Redirected to Shielding 120 | . 46 74 Regen/Repaired (Parts) 46 | . 46 . Core Remaining (%) 100 | 100 . . Volleys Fired 66 | . 39 27 Largest 2 | . 2 2 Hottest 100 | . 70 100 Shots Fired 123 | . 78 45 Gun 123 | . 78 45 Cannon . | . . . Launcher . | . . . Special . | . . . Kinetic 53 | . 39 14 Thermal 70 | . 39 31 Explosive . | . . . Electromagnetic . | . . . Robot Hit Streak 31 | . 8 31 Robot Miss Streak 3 | . 3 1 Penetration Max . | . . . Secondary Targets 1 | . 1 . Max Gunslinging Chain 1 | . 1 . Shots Hit Robots 80 | . 48 32 Core Hits 25 | . 19 6 Critical Kills . | . . . Critical Parts Destroyed . | . . . Critical Strikes 4 | . 3 1 Burn 4 | . 3 1 Melee Attacks . | . . . Impact . | . . . Slashing . | . . . Piercing . | . . . Sneak Attacks . | . . . Combat Hostiles . | . . . Follow-up Attacks . | . . . Damage Inflicted 903 | . 491 412 Guns 903 | . 491 412 Cannons . | . . . Explosions . | . . . Melee . | . . . Ramming . | . . . Kinetic 213 | . 165 48 Thermal 690 | . 326 364 Explosive . | . . . Electromagnetic . | . . . Impact . | . . . Slashing . | . . . Piercing . | . . . Highest Corruption . | . . . Average Corruption . | . . . Corruption Purged . | . . . Corruption Blocked . | . . . Overload Shots . | . . . Overflow Damage . | . . . Projectiles . | . . . Explosions . | . . . Melee . | . . . Knockbacks . | . . . Impact . | . . . Kinetic . | . . . Secondary . | . . . Self-Inflicted Damage . | . . . Shots . | . . . Rammed . | . . . Targets Rammed . | . . . Kicked . | . . . Crushed . | . . . Highest Temperature 79 | . 79 6 Average Temperature 29 | . 32 3 Received Heat Transfer 327 | . 189 138 Siege Activations . | . . . Robots Corrupted . | . . . Combat Hostiles . | . . . Parts Fried . | . . . Impact Corruptions . | . . . Robots Melted . | . . . Combat Hostiles . | . . . Parts Melted 3 | . 1 2 Heat Transferred 2331 | . 1184 1147 Parts Sabotaged . | . . . Parts Stolen . | . . . Parts Stripped . | . . . Power Chain Reactions . | . . . Alert | -11 -10 -10 ------- Run | Yrd Mat Sub Peak Influence 158 | . 158 . Initial . | . . . Average 43 | . 46 . Maximum Alert Level . | . . . Low Security (%) 100 | 100 100 . Level 1 . | . . . Level 2 . | . . . Level 3 . | . . . Level 4 . | . . . Level 5 . | . . . High Security . | . . . Max Security . | . . . Squads Dispatched 1 | . 1 . Investigation 1 | . 1 . Extermination . | . . . Reinforcement . | . . . Assault . | . . . Garrison . | . . . Intercept . | . . . Searches Triggered . | . . . Construction Impeded . | . . . Haulers Reinforced . | . . . Active Scanning Responses . | . . . Cargo Convoy Interrupts . | . . . Stealth | -11 -10 -10 --------- Run | Yrd Mat Sub Distress Signals 1 | . 1 . Communications Jammed . | . . . Distress Signals . | . . . Times Spotted 12 | . 7 5 Peak Tracking Total 2 | . 2 1 Tactical Retreats . | . . . Traps | -11 -10 -10 ------- Run | Yrd Mat Sub Traps Triggered 4 | . 1 3 Indirectly . | . . . Trap Hack Attempts . | . . . Triggered . | . . . Disarmed . | . . . Reprogrammed . | . . . Reused . | . . . Traps Extracted . | . . . Installed . | . . . Triggered . | . . . Machines | -11 -10 -10 ---------- Run | Yrd Mat Sub Machines Disabled . | . . . Max in Single Turn . | . . . Machines Repaired . | . . . Machines Dismantled . | . . . Machines Sabotaged . | . . . Overloaded Fab Kills . | . . . Hacking | -11 -10 -10 --------- Run | Yrd Mat Sub Machines Accessed 7 | . 7 . Terminals 5 | . 5 . Fabricators . | . . . Repair Stations 1 | . 1 . Recycling Units 1 | . 1 . Scanalyzers . | . . . Garrison Access . | . . . Total Hacks 21 | . 21 . Successful 12 | . 12 . Failed 8 | . 8 . Catastrophic . | . . . Database Lockouts 1 | . 1 . Manual 16 | . 16 . Terminals 17 | . 17 . Fabricators . | . . . Repair Stations 2 | . 2 . Recycling Units 2 | . 2 . Scanalyzers . | . . . Garrison Access . | . . . Terminal Hacks 2 | . 2 . Robot Analysis 1 | . 1 . Registered Components 1 | . 1 . Fabricator Hacks . | . . . Repair Station Hacks 2 | . 2 . Scan Component 1 | . 1 . Repair 1 | . 1 . Recycling Unit Hacks 1 | . 1 . Retrieve Components 1 | . 1 . Scanalyzer . | . . . Garrison Access Hacks . | . . . Unauthorized Hacks 7 | . 7 . Terminals 7 | . 7 . Botnet 1 | . 1 . Operators 1 | . 1 . Skim 5 | . 5 . Fabricators . | . . . Repair Stations . | . . . Recycling Units . | . . . Scanalyzers . | . . . Garrison Access . | . . . Data Cores Recovered . | . . . Used . | . . . Hacking Detections 7 | . 7 . Full Trace Events . | . . . Feedback Events . | . . . Feedback Blocked . | . . . Robot Schematics Acquired . | . . . Robots Built . | . . . Authchips . | . . . Time . | . . . Total Robot Build Rating . | . . . Part Schematics Acquired . | . . . Parts Built . | . . . Authchips . | . . . Time . | . . . Total Part Build Rating . | . . . Parts Repaired 1 | . 1 . Time 26 | . 26 . Parts Recycled . | . . . Recycled Matter . | . . . Retrieved Matter . | . . . Retrieved Components 9 | . 9 . Parts Scanalyzed . | . . . Part Schematics Acquired . | . . . Parts Damaged . | . . . Bothacking | -11 -10 -10 ------------ Run | Yrd Mat Sub Used RIF Installer . | . . . Robots Hacked . | . . . Non-combat . | . . . Combat . | . . . Robot Hacks Applied . | . . . Relay Couplers Released . | . . . Fabnet Peak Effective % . | . . . Robots Rewired . | . . . Allies Hacked . | . . . Hacks Repelled . | . . . Allies | -11 -10 -10 -------- Run | Yrd Mat Sub Total Allies . | . . . Largest Group . | . . . Highest-Rated Group . | . . . Highest-Rated Ally . | . . . Total Orders . | . . . Ally Attacks . | . . . Total Damage . | . . . Kills . | . . . Allies Corrupted . | . . . Allies Melted . | . . . Intel | -11 -10 -10 ------- Run | Yrd Mat Sub Robot Analysis Total 1 | . 1 . Derelict Logs Recovered . | . . . Drone Launches . | . . . Drone Recoveries . | . . . Exploration | -11 -10 -10 ------------- Run | Yrd Mat Sub Turns Passed 1653 | 72 951 630 Spaces Moved 645 | 43 301 301 Core 7 | 7 . . Treads 638 | 36 301 301 Legs . | . . . Wheels . | . . . Hover . | . . . Flight . | . . . Fastest Speed 50 | 50 160 160 Average Speed 167 | 143 160 179 Slowest Speed 240 | 160 160 240 Overloaded Moves . | . . . Propulsion Burnouts . | . . . Robots Hopped . | . . . Cave-ins Triggered . | . . . Exploration Rate (%) 25 | 3 51 21 Regions Visited 2 Branch Regions 1 Pre-discovered Areas 2 | . 2 . Known Exits Taken 1 | . 1 . Unknown Exits Taken 1 | 1 . . Scrap Searched . | . . . Spaces Dug . | . . . Terrain Destroyed . | . . . Melee . | . . . Projectile . | . . . AOE . | . . . Terrain Rammed . | . . . Walls Destroyed . | . . . Machines Disabled . | . . . Actions | -11 -10 -10 --------- Run | Yrd Mat Sub Total 1098 | 51 699 348 Wait 362 | . 350 12 Move 643 | 42 300 301 Hop . | . . . Pick Up 9 | 3 4 2 Fast Attach 10 | 6 2 2 Attach 2 | . . 2 Detach 2 | . . 2 Swap 2 | . 2 . Drop 2 | . 2 . Fire 66 | . 39 27 Melee . | . . . Ram . | . . . Kick . | . . . Crush . | . . . Escape Stasis . | . . . Rewire . | . . . Trap . | . . . Miscellaneous . | . . . Route ------- -11/Scrapyard -10/Materials (discovered 6 exits: Mat x3 / *Min x2 / *Sub) -10/Subcaves History --------- Turn | Location | Event 3 | -11/Scrapyard | Discovered new exit (range 16) 73 | -11/Scrapyard | Entered Materials 315 | -10/Materials | Build established: Mutant 536 | -10/Materials | Central database locked down 540 | -10/Materials | Discovered new exit (range 16) 613 | -10/Materials | Identified exit to Materials 638 | -10/Materials | Repaired Propulsion Shielding 681 | -10/Materials | Identified exit to Subcaves 738 | -10/Materials | Learned location of Storage (-9) 786 | -10/Materials | Identified exit to Mines 850 | -10/Materials | Learned Storage emergency access door positions 1024 | -10/Materials | Entered Subcaves 1214 | -10/Subcaves | Core integrity fell below 50% 1258 | -10/Subcaves | Shifting Twisted Machinery released Sub. Beam Cannon 1355 | -10/Subcaves | Shifting Twisted Machinery released Battle Rifle 1409 | -10/Subcaves | Core integrity fell below 20% 1654 | -10/Subcaves | Destroyed by ET-TVI(R) with Subdweller Beam Cannon Last Messages --------------- Sub. Optics melted. 81-YMT(R) destroyed. Acquired 25 matter. Propulsion Shielding destroyed. Lgt. Treads destroyed. G3-G4N(R) destroyed. Acquired 5 matter. Acquired Sub. Power Source. Sub. Beam Cannon falls loose from the Twisted Machinery. Battle Rifle falls loose from the Twisted Machinery. Acquired Battle Rifle. Sub. Monowheel melted. R4-W30(R) destroyed. Subatomizers dissect the Sub. Power Source. Acquired 25 matter. Acquired Sub. Power Source. Acquired Sub. Beam Cannon. Lgt. Treads destroyed. Map ----- +----------------------------------------------------+ | ???????????????????????# "##?????????## #? | | ??????????????????????## " #??######### ##? | | ??????????????????????# """#??#" """"""""" ##?? | | ??????????????????????## ""#???# " ""####??? | | ??????????????????????## "##???##### " " ##????? | | ??????????????????????#" ""#???###?##### " ###??? | | ??????????????????????##" ###### ##?####" #??? | | ??????????????????????#""" ## #" ### ## "##?? | | ??????????????????????# " ## "" #?? | | ??????????????????????## ## """ #?? | | ???????????????????????## # # ## ##"" #?? | | ????????????????????????##### ## ### #?? | | ????????????????????????## "## ### #?? | | ????????????????????????# &%### ### #?? | | ???????????????????????## & ### #?? | | ???????????????????????# ### ##?? | | ???????????????????????# ### ##?? | | ???????????????????????## ## ### ##? | | ????????????????????????# ### ###?## #? | | ?????????????#######???## #?# ###??# #? | | ?????????????# ### # #?### ##?## ##? | | ?????????? ###???## #?## #?? | | ?????????? # # #??????### ### #?? | | ???????????? ????#?## #????????# #?? | | ???????????????????????# ##????????## ###?? | | ???????????????????????# @##??????????# ##???? | | ???????????????????? #??????????## #????? | | ???????????????? R ##?????????## #????? | | ??????????????# R #???????????# ##????? | | ??????????????# #????????????# ##?????? | | ??????????????# ?????????????### ##?????? | | ?????????????# ## ???????????????# #?????? | | ?????????????## #?###???????????????# ####?????? | | ??????????????####????????????????????##?????????? | | ?????????????????????????????????????????????????? | | ?????????????????????????????????????????????????? | | ?????????????????????????????????????????????????? | | ?????????????????????????????????????????????????? | | ?????????????????????????????????????????????????? | | ?????????????????????????????????????????????????? | | ?????????????????????????????????????????????????? | | ?????????????????????????????????????????????????? | | ?????????????????????????????????????????????????? | | ?????????????????????????????????????????????????? | | ?????????????????????????????????????????????????? | | ?????????????????????????????????????????????????? | | ?????????????????????????????????????????????????? | | ?????????????????????????????????????????????????? | | | | | +----------------------------------------------------+ Best States ------------- Heat Dissipation 25 Energy Generation 10 Energy Capacity 250 Matter Stores 300 Matter Capacity 300 Sight Range 16 Terrain Scan Density 10 Propulsion Shielding 33 Evasion (%) 40 Recoil Reduction 2 Item Schematics ----------------- None Robot Schematics ------------------ None Fabricated ------------ Nothing Alien Tech Used ----------------- None Achievements -------------- None Challenges ------------ None Game ------ Seed CouplerThunderThermoblaster Manual? 0 Play Time 00:09:54 Cumulative 559.1 hours Start 2024.08.11 @ 12:55:32 End 2024.08.11 @ 13:08:14 Sessions 1 Manual Loads 0 Difficulty Rogue Special Mode None Game No. 318 Rogue 318 Adventurer 0 Explorer 0 Win Type - Total 36 Types 22/2/4/3/1/1/1/1/1 Lore% 96 Gallery% 97 Achievement% 98 Wizard Run 0 Options --------- Layout 1 ASCII 0 Keyboard 0 Movement Numpad Keybinds 0 Fullscreen 1 Font 24/Smallcaps Map View 50x35 Zoom Use 0% Tactical HUD 1 Map Filters NONE Filters NONE Steam 1 RUN: 0fb73eab-a969-4e58-b683-dec51aa583a2